bitfinex/quotes_SOLUSD_20241231
["timestamp","ask_amount","ask_price","bid_price","bid_amount"]
[1735667048841,25.10147312,195.76,195.69,25.10147312]
[1735667049133,25.10147312,195.75,195.67,25.10147312]
[1735667049321,25.10147312,195.74,195.67,25.10147312]
[1735667050517,25.10147312,195.77,195.7,25.10147312]
[1735667050733,12.7667,195.83,195.72,25.10147312]
[1735667050734,25.10147312,195.79,195.72,25.10147312]
[1735667050929,25.10147312,195.75,195.68,25.10147312]
[1735667051837,25.10147312,195.77,195.69,25.10147312]
[1735667053306,25.10147312,195.75,195.68,25.10147312]
[1735667053846,25.10147312,195.77,195.7,25.10147312]
[1735667054020,25.10147312,195.75,195.68,25.10147312]
[1735667054338,25.10147312,195.72,195.61,18.8721]
[1735667054526,25.10147312,195.73,195.66,25.10147312]
[1735667054938,25.10147312,195.72,195.65,25.10147312]
[1735667055141,25.10147312,195.7,195.63,25.10147312]
[1735667055434,25.10147312,195.7,195.61,18.8721]
[1735667055435,25.10147312,195.68,195.61,31.19357312]
[1735667055648,25.10147312,195.67,195.61,6.0921]
[1735667055825,25.10147312,195.65,195.58,25.10147312]
[1735667056151,25.10147312,195.68,195.61,25.10147312]
[1735667056319,25.10147312,195.69,195.62,25.10147312]
[1735667056727,25.10147312,195.68,195.61,25.10147312]
[1735667057045,23.776884,195.72,195.6,25.10147312]
[1735667057046,25.10147312,195.67,195.6,25.10147312]
[1735667057220,25.10147312,195.69,195.62,25.10147312]
[1735667057420,25.10147312,195.71,195.64,25.10147312]
[1735667057819,25.10147312,195.7,195.63,25.10147312]
[1735667058059,25.10147312,195.69,195.62,25.10147312]
[1735667058356,25.10147312,195.68,195.61,25.10147312]
[1735667060255,25.10147312,195.69,195.62,25.10147312]
[1735667061034,25.10147312,195.71,195.64,25.10147312]
[1735667061235,25.10147312,195.72,195.65,25.10147312]
[1735667061445,25.10147312,195.7,195.63,25.10147312]
[1735667062222,25.10147312,195.71,195.63,25.10147312]
[1735667062429,25.10147312,195.73,195.66,25.10147312]
[1735667062640,25.10147312,195.74,195.67,25.10147312]
[1735667063039,25.10147312,195.73,195.66,25.10147312]
[1735667063240,25.10147312,195.7,195.63,25.10147312]
[1735667063445,25.10147312,195.68,195.61,25.10147312]
[1735667063834,25.10147312,195.72,195.64,25.10147312]
[1735667064034,12.7672,195.82,195.67,25.10147312]
[1735667064333,25.10147312,195.73,195.65,25.10147312]
[1735667064542,25.10147312,195.73,195.66,25.10147312]
[1735667064742,25.10147312,195.75,195.68,25.10147312]
[1735667066439,25.10147312,195.74,195.67,25.10147312]
[1735667066649,25.10147312,195.72,195.65,25.10147312]
[1735667066967,25.10147312,195.71,195.64,25.10147312]
[1735667067175,25.10147312,195.72,195.64,25.10147312]
[1735667067361,25.10147312,195.74,195.67,25.10147312]
[1735667067556,25.10147312,195.73,195.66,25.10147312]
[1735667067875,25.10147312,195.72,195.65,25.10147312]
[1735667068238,25.10147312,195.71,195.64,25.10147312]
[1735667068439,25.10147312,195.71,195.58,25.5649]
[1735667068440,25.10147312,195.7,195.63,25.10147312]
[1735667068640,25.10147312,195.71,195.64,25.10147312]
[1735667069747,25.10147312,195.67,195.6,25.10147312]
[1735667069935,25.10147312,195.66,195.59,25.10147312]
[1735667071253,25.10147312,195.65,195.58,25.10147312]
[1735667071450,25.10147312,195.64,195.57,25.10147312]
[1735667072671,25.10147312,195.65,195.58,25.10147312]
[1735667072891,25.10147312,195.64,195.57,25.10147312]
[1735667073259,25.10147312,195.65,195.58,25.10147312]
[1735667074063,25.10147312,195.61,195.55,6.5849]
[1735667074472,25.10147312,195.6,195.55,6.5849]
[1735667074672,25.10147312,195.6,195.53,25.10147312]
[1735667075245,25.10147312,195.6,195.54,25.10147312]
[1735667075444,25.10147312,195.6,195.53,25.10147312]
[1735667075676,25.10147312,195.61,195.54,25.10147312]
[1735667075871,25.10147312,195.6,195.53,25.10147312]
[1735667076164,25.10147312,195.61,195.54,25.10147312]
[1735667076374,25.10147312,195.6,195.53,25.10147312]
[1735667076661,25.10147312,195.61,195.54,25.10147312]
[1735667077243,25.10147312,195.59,195.53,25.10147312]
[1735667077448,25.10147312,195.54,195.47,25.10147312]
[1735667077754,25.10147312,195.52,195.45,25.10147312]
[1735667077954,25.10147312,195.5,195.44,6.1276]
[1735667078151,20.0,195.58,195.44,18.9191]
[1735667078454,25.10147312,195.58,195.51,25.10147312]
[1735667078654,25.10147312,195.57,195.5,25.10147312]
[1735667079382,25.10147312,195.52,195.45,25.10147312]
[1735667079783,25.10147312,195.53,195.46,25.10147312]
[1735667079991,25.10147312,195.55,195.48,25.10147312]
[1735667080157,12.7798,195.62,195.5,25.10147312]
[1735667080158,25.10147312,195.56,195.5,25.10147312]
[1735667080362,25.10147312,195.56,195.49,25.10147312]
[1735667080664,25.10147312,195.53,195.46,25.10147312]
[1735667081379,23.776884,195.59,195.45,25.10147312]
[1735667081380,25.10147312,195.52,195.45,25.10147312]
[1735667081679,25.10147312,195.51,195.44,31.22907312]
[1735667082061,25.10147312,195.5,195.43,25.10147312]
[1735667082277,25.10147312,195.48,195.42,1.6083]
[1735667082585,25.10147312,195.48,195.41,25.10147312]
[1735667082779,25.10147312,195.49,195.42,25.10147312]
[1735667082965,25.10147312,195.48,195.41,25.10147312]
[1735667083171,23.776884,195.55,195.39,6.4382]
[1735667083172,25.10147312,195.47,195.4,25.10147312]
[1735667083360,25.10147312,195.5,195.43,25.10147312]
[1735667083562,25.10147312,195.49,195.42,25.10147312]
[1735667084080,25.10147312,195.47,195.4,25.10147312]
[1735667084283,25.10147312,195.46,195.39,31.53967312]
[1735667084485,25.10147312,195.48,195.41,25.10147312]
[1735667084780,25.10147312,195.47,195.4,25.10147312]
[1735667084980,25.10147312,195.47,195.39,25.10147312]
[1735667085173,25.10147312,195.47,195.4,25.10147312]
[1735667085562,25.10147312,195.51,195.44,25.10147312]
[1735667085962,25.10147312,195.5,195.43,25.10147312]
[1735667086278,25.10147312,195.48,195.41,25.10147312]
[1735667086485,25.10147312,195.49,195.42,25.10147312]
[1735667086983,25.10147312,195.48,195.41,25.10147312]
[1735667087977,25.10147312,195.53,195.46,25.10147312]
[1735667088172,25.10147312,195.54,195.47,25.10147312]
[1735667088379,25.10147312,195.53,195.46,25.10147312]
[1735667089264,25.10147312,195.54,195.47,25.10147312]
[1735667090760,25.10147312,195.55,195.48,25.10147312]
[1735667091182,25.10147312,195.56,195.49,25.10147312]
[1735667091760,25.10147312,195.55,195.48,25.10147312]
[1735667092372,15.73959378,195.58,195.5,15.73959378]
[1735667092585,23.776884,195.63,195.49,15.73959378]
[1735667092767,15.73959378,195.54,195.48,6.4674]
[1735667092969,15.73959378,195.52,195.45,15.73959378]
[1735667093284,15.73959378,195.51,195.44,15.73959378]
[1735667093683,15.73959378,195.52,195.45,15.73959378]
[1735667093991,15.73959378,195.51,195.44,15.73959378]
[1735667094487,15.73959378,195.51,195.43,15.73959378]
[1735667094686,15.73959378,195.51,195.44,15.73959378]
[1735667094990,15.73959378,195.5,195.43,15.73959378]
[1735667095184,15.73959378,195.51,195.44,15.73959378]
[1735667095380,15.73959378,195.52,195.44,15.73959378]
[1735667095687,15.73959378,195.51,195.44,15.73959378]
[1735667095885,15.73959378,195.51,195.43,15.73959378]
[1735667096482,15.73959378,195.46,195.42,6.4674]
[1735667096687,17.7844,195.55,195.37,15.73959378]
[1735667096688,15.73959378,195.44,195.37,15.73959378]
[1735667097282,15.73959378,195.43,195.36,23.66309378]
[1735667097481,15.73959378,195.41,195.36,7.9235]
[1735667097670,15.73959378,195.42,195.36,7.9235]
[1735667098993,15.73959378,195.41,195.34,15.73959378]
[1735667099288,15.73959378,195.4,195.33,15.73959378]
[1735667099989,12.7874,195.51,195.39,15.73959378]
[1735667100195,5.0,195.53,195.39,15.73959378]
[1735667100196,15.73959378,195.45,195.39,15.73959378]
[1735667100382,15.73959378,195.46,195.39,15.73959378]
[1735667100693,15.73959378,195.47,195.4,15.73959378]
[1735667101199,15.73959378,195.48,195.41,15.73959378]
[1735667101373,19.0094,195.57,195.42,15.73959378]
[1735667101374,15.73959378,195.49,195.42,15.73959378]
[1735667101574,15.73959378,195.5,195.43,15.73959378]
[1735667102278,5.2504459,195.58,195.42,1.5936]
[1735667102473,15.73959378,195.56,195.49,15.73959378]
[1735667102674,15.73959378,195.58,195.51,15.73959378]
[1735667102920,15.73959378,195.59,195.52,15.73959378]
[1735667103077,15.73959378,195.6,195.53,15.73959378]
[1735667103276,15.73959378,195.61,195.54,15.73959378]
[1735667103472,15.73959378,195.61,195.55,15.73959378]
[1735667103886,15.73959378,195.62,195.55,15.73959378]
[1735667104475,15.73959378,195.59,195.52,15.73959378]
[1735667104675,15.73959378,195.57,195.5,15.73959378]
[1735667104877,15.73959378,195.56,195.49,15.73959378]
[1735667105282,15.73959378,195.55,195.48,15.73959378]
[1735667105484,15.73959378,195.53,195.46,15.73959378]
[1735667105798,15.73959378,195.54,195.47,15.73959378]
[1735667105998,15.73959378,195.53,195.46,15.73959378]
[1735667106385,25.19011889,195.52,195.45,25.19011889]
[1735667107304,25.19011889,195.51,195.44,31.51511889]
[1735667107596,25.19011889,195.52,195.45,25.19011889]
[1735667108299,25.19011889,195.53,195.46,25.19011889]
[1735667108493,25.19011889,195.57,195.49,25.19011889]
[1735667108692,25.19011889,195.61,195.54,25.19011889]
[1735667108904,25.19011889,195.62,195.55,25.19011889]
[1735667109093,25.19011889,195.7,195.57,25.19011889]
[1735667109280,25.19011889,195.7,195.58,25.19011889]
[1735667109481,25.19011889,195.65,195.55,6.325]
[1735667109688,25.19011889,195.65,195.58,25.19011889]
[1735667110314,25.19011889,195.66,195.59,25.19011889]
[1735667110479,25.19011889,195.68,195.6,25.19011889]
[1735667110810,25.19011889,195.68,195.61,25.19011889]
[1735667111386,25.19011889,195.63,195.56,25.19011889]
[1735667111707,25.19011889,195.57,195.51,25.19011889]
[1735667111904,23.776884,195.61,195.48,1.5936]
[1735667112103,20.0,195.58,195.48,1.5936]
[1735667113002,25.19011889,195.54,195.48,1.5936]
[1735667113205,25.19011889,195.6,195.53,25.19011889]
[1735667114005,25.19011889,195.57,195.5,25.19011889]
[1735667114205,25.19011889,195.58,195.52,25.19011889]
[1735667114508,25.19011889,195.54,195.48,1.5936]
[1735667115510,25.19011889,195.5,195.45,6.325]
[1735667115709,25.19011889,195.51,195.45,6.325]
[1735667117707,25.19011889,195.49,195.42,1.626]
[1735667117916,25.19011889,195.48,195.42,1.626]
[1735667118210,25.19011889,195.47,195.42,1.626]
[1735667119124,25.19011889,195.45,195.4,6.0258]
[1735667119295,25.19011889,195.43,195.36,25.19011889]
[1735667119497,25.19011889,195.44,195.37,25.19011889]
[1735667119694,25.19011889,195.47,195.4,25.19011889]
[1735667119900,25.19011889,195.46,195.4,25.19011889]
[1735667120111,25.19011889,195.49,195.42,25.19011889]
[1735667120326,25.19011889,195.47,195.4,25.19011889]
[1735667120630,25.19011889,195.48,195.41,25.19011889]
[1735667121291,25.19011889,195.47,195.4,25.19011889]
[1735667121491,25.19011889,195.42,195.34,7.6518]
[1735667121699,25.19011889,195.39,195.29,12.8008]
[1735667121919,25.19011889,195.37,195.3,25.19011889]
[1735667122709,25.19011889,195.39,195.32,25.19011889]
[1735667123218,25.19011889,195.38,195.32,25.19011889]
[1735667123426,25.19011889,195.38,195.31,25.19011889]
[1735667123592,25.19011889,195.36,195.29,25.19011889]
[1735667124025,25.19011889,195.37,195.31,25.19011889]
[1735667124512,25.19011889,195.37,195.3,25.19011889]
[1735667125512,25.19011889,195.36,195.3,25.19011889]
[1735667126608,25.19011889,195.33,195.28,7.6518]
[1735667126809,25.19011889,195.33,195.22,12.8055]
[1735667126810,25.19011889,195.3,195.23,31.84571889]
[1735667127000,25.19011889,195.29,195.23,6.6556]
[1735667127192,25.19011889,195.28,195.23,6.6556]
[1735667127612,25.19011889,195.4,195.19,25.19011889]
[1735667127613,25.19011889,195.26,195.19,25.19011889]
[1735667128016,25.19011889,195.23,195.18,6.6556]
[1735667128304,25.19011889,195.19,195.11,6.6556]
[1735667128513,25.19011889,195.2,195.14,25.19011889]
[1735667128700,25.19011889,195.3,195.14,20.0]
[1735667128897,12.7966,195.37,195.15,20.0]
[1735667129400,23.776884,195.34,195.19,20.0]
[1735667129597,3.33877571,195.35,195.19,20.0]
[1735667129797,3.33877571,195.33,195.2,8.2911]
[1735667130001,25.19011889,195.32,195.25,25.19011889]
[1735667130321,28.5288946,195.33,195.26,25.19011889]
[1735667130523,25.19011889,195.33,195.26,25.19011889]
[1735667130825,25.19011889,195.34,195.2,33.48121889]
[1735667131011,25.19011889,195.41,195.33,25.19011889]
[1735667131204,25.19011889,195.42,195.35,25.19011889]
[1735667131404,25.19011889,195.43,195.36,25.19011889]
[1735667131833,25.19011889,195.43,195.32,8.2911]
[1735667131834,25.19011889,195.41,195.32,8.2911]
[1735667134620,25.19011889,195.46,195.39,25.19011889]
[1735667134826,25.19011889,195.47,195.39,25.19011889]
[1735667135116,25.19011889,195.47,195.4,25.19011889]
[1735667135442,12.7854,195.54,195.36,12.7966]
[1735667135443,25.19011889,195.45,195.38,25.19011889]
[1735667135813,25.19011889,195.46,195.39,25.19011889]
[1735667136305,25.19011889,195.5,195.43,25.19011889]
[1735667136498,25.19011889,195.53,195.46,25.19011889]
[1735667137010,25.19011889,195.52,195.45,25.19011889]
[1735667137222,25.19011889,195.5,195.44,25.19011889]
[1735667137421,23.776884,195.57,195.43,25.19011889]
[1735667137422,25.19011889,195.49,195.43,25.19011889]
[1735667137724,25.19011889,195.49,195.42,25.19011889]
[1735667138024,25.19011889,195.5,195.43,25.19011889]
[1735667138222,25.19011889,195.49,195.42,25.19011889]
[1735667138726,25.19011889,195.49,195.41,25.19011889]
[1735667139120,25.19011889,195.47,195.4,25.19011889]
[1735667139426,25.19011889,195.44,195.37,25.19011889]
[1735667139628,25.19011889,195.43,195.36,25.19011889]
[1735667139811,25.19011889,195.45,195.38,25.19011889]
[1735667140604,25.19011889,195.41,195.34,25.19011889]
[1735667141006,25.19011889,195.4,195.33,25.19011889]
[1735667141323,25.19011889,195.46,195.39,25.19011889]
[1735667141520,25.19011889,195.46,195.35,20.0]
[1735667141521,25.19011889,195.47,195.4,25.19011889]
[1735667141720,25.19011889,195.5,195.35,20.0]
[1735667141924,23.776884,195.49,195.32,21.0901]
[1735667142125,25.19011889,195.37,195.32,8.2911]
[1735667142339,25.19011889,195.36,195.29,25.19011889]
[1735667142637,25.19011889,195.34,195.27,31.41331889]
[1735667142807,25.19011889,195.31,195.27,6.2232]
[1735667143006,25.19011889,195.31,195.24,25.19011889]
[1735667143311,25.19011889,195.28,195.21,31.41331889]
[1735667143610,25.19011889,195.27,195.21,6.2232]
[1735667144807,25.19011889,195.28,195.21,31.41331889]
[1735667145011,25.19011889,195.29,195.22,25.19011889]
[1735667145237,25.19011889,195.28,195.21,31.41331889]
[1735667145810,25.19011889,195.3,195.22,25.19011889]
[1735667146128,6.0614,195.36,195.26,25.19011889]
[1735667146129,25.19011889,195.33,195.26,25.19011889]
[1735667146331,25.19011889,195.34,195.27,25.19011889]
[1735667146534,25.19011889,195.36,195.28,25.19011889]
[1735667147243,25.19011889,195.36,195.29,25.19011889]
[1735667147411,25.19011889,195.34,195.27,25.19011889]
[1735667147847,25.19011889,195.35,195.28,25.19011889]
[1735667148124,25.19011889,195.36,195.28,25.19011889]
[1735667148333,25.19011889,195.39,195.32,25.19011889]
[1735667148546,25.19011889,195.39,195.25,12.8037]
[1735667148547,25.19011889,195.39,195.31,25.19011889]
[1735667148844,25.19011889,195.36,195.29,25.19011889]
[1735667149017,25.19011889,195.35,195.28,45.19011889]
[1735667149216,25.19011889,195.34,195.27,25.19011889]
[1735667149731,25.19011889,195.31,195.24,25.19011889]
[1735667150138,25.19011889,195.32,195.24,45.19011889]
[1735667150625,25.19011889,195.3,195.22,25.19011889]
[1735667150835,25.19011889,195.29,195.22,25.19011889]
[1735667151010,25.19011889,195.3,195.22,25.19011889]
[1735667151929,25.19011889,195.3,195.23,25.19011889]
[1735667152234,25.19011889,195.31,195.24,25.19011889]
[1735667152429,25.19011889,195.32,195.25,25.19011889]
[1735667152630,25.19011889,195.33,195.26,25.19011889]
[1735667152944,25.19011889,195.35,195.28,25.19011889]
[1735667153232,25.19011889,195.32,195.25,25.19011889]
[1735667153640,25.19011889,195.34,195.27,25.19011889]
[1735667153836,25.19011889,195.32,195.25,25.19011889]
[1735667154135,25.19011889,195.31,195.24,25.19011889]
[1735667154338,25.19011889,195.3,195.23,25.19011889]
[1735667155336,25.19011889,195.31,195.24,25.19011889]
[1735667155638,25.19011889,195.3,195.23,25.19011889]
[1735667155843,25.19011889,195.28,195.21,31.41331889]
[1735667156143,25.19011889,195.27,195.21,6.2232]
[1735667156311,25.19011889,195.28,195.21,31.41331889]
[1735667156517,25.19011889,195.27,195.21,6.2232]
[1735667156823,25.19011889,195.22,195.21,6.2232]
[1735667157029,25.19011889,195.22,195.14,1.6649]
[1735667157228,25.19011889,195.2,195.14,1.6649]
[1735667157433,25.19011889,195.3,195.15,25.19011889]
[1735667157434,25.19011889,195.22,195.15,25.19011889]
[1735667157736,23.776884,195.29,195.17,25.19011889]
[1735667158035,23.776884,195.29,195.14,1.6649]
[1735667158036,25.19011889,195.26,195.19,25.19011889]
[1735667158234,25.19011889,195.25,195.18,25.19011889]
[1735667160122,25.19011889,195.24,195.16,25.19011889]
[1735667160450,25.19011889,195.21,195.14,26.85501889]
[1735667160652,25.19011889,195.22,195.15,25.19011889]
[1735667160934,25.19011889,195.24,195.17,25.19011889]
[1735667161534,25.19011889,195.22,195.15,25.19011889]
[1735667161837,25.19011889,195.21,195.14,1.6649]
[1735667162018,25.19011889,195.21,195.14,26.85501889]
[1735667162218,25.19011889,195.22,195.14,26.85501889]
[1735667162542,25.19011889,195.21,195.14,26.85501889]
[1735667162723,25.19011889,195.21,195.13,25.19011889]
[1735667162920,25.19011889,195.16,195.11,6.0988]
[1735667163119,25.19011889,195.15,195.08,26.76251889]
[1735667164035,25.19011889,195.16,195.08,26.76251889]
[1735667164242,25.19011889,195.16,195.09,25.19011889]
[1735667164556,25.19011889,195.16,195.08,26.76251889]
[1735667164723,25.19011889,195.15,195.08,26.76251889]
[1735667165030,25.19011889,195.16,195.08,26.76251889]
[1735667165355,25.19011889,195.21,195.14,25.19011889]
[1735667165532,25.19011889,195.19,195.12,25.19011889]
[1735667165733,25.19011889,195.17,195.1,25.19011889]
[1735667165938,12.806,195.22,195.08,1.5724]
[1735667166833,23.776884,195.2,195.08,1.5724]
[1735667167038,61.77490289,195.2,195.06,6.5297]
[1735667167339,25.19011889,195.09,195.02,26.76251889]
[1735667167718,25.19011889,195.13,195.07,25.19011889]
[1735667167950,39.57021889,195.2,195.07,25.19011889]
[1735667168138,5.0,195.25,195.09,25.19011889]
[1735667168139,25.19011889,195.16,195.09,25.19011889]
[1735667168316,25.19011889,195.18,195.11,25.19011889]
[1735667168528,25.19011889,195.2,195.13,25.19011889]
[1735667168736,25.19011889,195.21,195.14,25.19011889]
[1735667168920,25.19011889,195.2,195.13,25.19011889]
[1735667169121,25.19011889,195.18,195.11,25.19011889]
[1735667169424,25.19011889,195.17,195.1,25.19011889]
[1735667169618,25.19011889,195.18,195.12,25.19011889]
[1735667169839,25.19011889,195.19,195.12,25.19011889]
[1735667170347,25.19011889,195.17,195.1,25.19011889]
[1735667170522,25.19011889,195.16,195.09,25.19011889]
[1735667170723,25.19011889,195.17,195.1,25.19011889]
[1735667170945,25.19011889,195.2,195.13,25.19011889]
[1735667171330,25.19011889,195.19,195.12,25.19011889]
[1735667172327,25.19011889,195.2,195.13,25.19011889]
[1735667172521,25.19011889,195.21,195.14,25.19011889]
[1735667172967,25.19011889,195.22,195.15,25.19011889]
[1735667173439,25.19011889,195.21,195.15,25.19011889]
[1735667173748,25.19011889,195.23,195.15,25.19011889]
[1735667173931,25.19011889,195.24,195.17,25.19011889]
[1735667174129,25.19011889,195.28,195.21,25.19011889]
[1735667174324,25.19011889,195.29,195.17,20.0]
[1735667174524,25.19011889,195.31,195.24,25.19011889]
[1735667174929,25.19011889,195.27,195.2,25.19011889]
[1735667175119,25.19011889,195.22,195.15,25.19011889]
[1735667175320,23.776884,195.26,195.14,1.5458]
[1735667175519,20.0,195.27,195.14,1.5458]
[1735667175726,7.42494439,195.31,195.14,1.5458]
[1735667176028,1.28435717,195.26,195.14,1.5458]
[1735667176230,25.19011889,195.23,195.16,25.19011889]
[1735667176435,1.28435717,195.26,195.21,25.19011889]
[1735667176641,12.7975,195.35,195.21,25.19011889]
[1735667176642,25.19011889,195.29,195.21,25.19011889]
[1735667176825,25.19011889,195.27,195.2,25.19011889]
[1735667177021,25.19011889,195.3,195.23,25.19011889]
[1735667177248,25.19011889,195.28,195.21,25.19011889]
[1735667177423,38.07092801,195.46,195.27,45.19011889]
[1735667177625,38.07092801,195.46,195.31,25.19011889]
[1735667177626,25.19011889,195.39,195.31,25.19011889]
[1735667177825,25.19011889,195.41,195.33,25.19011889]
[1735667178033,41.11438289,195.43,195.35,25.19011889]
[1735667178333,6.2224,195.51,195.36,25.19011889]
[1735667178334,25.19011889,195.44,195.36,25.19011889]
[1735667178550,25.19011889,195.43,195.36,25.19011889]
[1735667178845,25.19011889,195.45,195.38,25.19011889]
[1735667179224,1.6277,195.53,195.39,25.19011889]
[1735667179225,25.19011889,195.47,195.39,25.19011889]
[1735667179440,25.19011889,195.49,195.41,25.19011889]
[1735667179630,25.19011889,195.48,195.41,25.19011889]
[1735667179837,25.19011889,195.49,195.42,25.19011889]
[1735667180050,25.19011889,195.49,195.41,25.19011889]
[1735667180346,5.0,195.54,195.38,40.96871013]
[1735667180542,40.96871013,195.45,195.38,40.96871013]
[1735667180736,19.0068,195.56,195.34,32.7981]
[1735667180737,21.28281111,195.53,195.34,32.7981]
[1735667180947,21.28281111,195.53,195.35,20.0]
[1735667181246,40.96871013,195.5,195.43,40.96871013]
[1735667181455,40.96871013,195.51,195.44,40.96871013]
[1735667181651,40.96871013,195.47,195.4,40.96871013]
[1735667181837,40.96871013,195.45,195.38,40.96871013]
[1735667182040,40.96871013,195.47,195.39,40.96871013]
[1735667182555,23.776884,195.55,195.36,1.5458]
[1735667182556,40.96871013,195.49,195.41,40.96871013]
[1735667183067,40.96871013,195.51,195.43,40.96871013]
[1735667183431,40.96871013,195.48,195.41,40.96871013]
[1735667183632,40.96871013,195.46,195.38,40.96871013]
[1735667183942,40.96871013,195.42,195.36,1.5458]
[1735667184147,40.96871013,195.38,195.31,47.29451013]
[1735667184363,23.776884,195.45,195.31,6.3258]
[1735667184538,40.96871013,195.36,195.31,6.3258]
[1735667184738,23.776884,195.45,195.29,42.51451013]
[1735667184739,40.96871013,195.34,195.29,1.5458]
[1735667185043,40.96871013,195.36,195.29,42.51451013]
[1735667185541,40.96871013,195.6,195.34,40.96871013]
[1735667185542,40.96871013,195.42,195.34,40.96871013]
[1735667185750,40.96871013,195.4,195.33,40.96871013]
[1735667186947,40.96871013,195.42,195.35,40.96871013]
[1735667187136,40.96871013,195.38,195.31,40.96871013]
[1735667187335,40.96871013,195.35,195.29,1.5458]
[1735667188041,40.96871013,195.38,195.31,40.96871013]
[1735667188240,40.96871013,195.37,195.3,40.96871013]
[1735667188558,12.7903,195.46,195.29,1.5458]
[1735667188559,40.96871013,195.36,195.29,42.51451013]
[1735667188738,40.96871013,195.38,195.31,40.96871013]
[1735667189339,40.96871013,195.41,195.33,40.96871013]
[1735667189548,40.96871013,195.42,195.35,40.96871013]
[1735667190155,40.96871013,195.43,195.36,40.96871013]
[1735667190459,40.96871013,195.42,195.35,40.96871013]
[1735667191655,40.96871013,195.43,195.36,40.96871013]
[1735667192163,40.96871013,195.42,195.35,40.96871013]
[1735667192341,12.7882,195.5,195.39,40.96871013]
[1735667192658,40.96871013,195.45,195.38,47.21391013]
[1735667192842,40.96871013,195.43,195.38,6.2452]
[1735667193239,40.96871013,195.44,195.38,6.2452]
[1735667193562,19.008,195.54,195.38,6.2452]
[1735667193563,40.96871013,195.47,195.39,40.96871013]
[1735667193752,40.96871013,195.46,195.39,40.96871013]
[1735667193949,40.96871013,195.45,195.38,47.21391013]
[1735667194150,40.96871013,195.42,195.35,40.96871013]
[1735667194341,40.96871013,195.41,195.34,40.96871013]
[1735667194541,40.96871013,195.42,195.34,40.96871013]
[1735667194763,40.96871013,195.42,195.35,40.96871013]
[1735667194940,40.96871013,195.45,195.37,40.96871013]
[1735667195343,40.96871013,195.45,195.38,40.96871013]
[1735667195859,19.008,195.54,195.4,40.96871013]
[1735667195860,40.96871013,195.47,195.4,40.96871013]
[1735667196059,40.96871013,195.48,195.41,40.96871013]
[1735667196451,12.7856,195.54,195.34,43.3944]
[1735667196452,40.96871013,195.5,195.43,40.96871013]
[1735667196958,40.96871013,195.49,195.41,40.96871013]
[1735667197162,40.96871013,195.47,195.4,40.96871013]
[1735667197465,40.96871013,195.41,195.36,1.6458]
[1735667197647,40.96871013,195.42,195.36,1.6458]
[1735667197847,23.776884,195.49,195.36,1.6458]
[1735667197848,40.96871013,195.44,195.36,42.61451013]
[1735667198161,40.96871013,195.44,195.37,40.96871013]
[1735667198676,40.96871013,195.42,195.36,1.6458]
[1735667199047,40.96871013,195.43,195.36,42.61451013]
[1735667199374,40.96871013,195.45,195.37,40.96871013]
[1735667199576,40.96871013,195.44,195.37,40.96871013]
[1735667199759,40.96871013,195.45,195.37,40.96871013]
[1735667199942,40.96871013,195.45,195.38,40.96871013]
[1735667200144,40.96871013,195.43,195.36,42.61451013]
[1735667200366,40.96871013,195.42,195.36,1.6458]
[1735667200744,40.96871013,195.4,195.36,1.6458]
[1735667201081,40.96871013,195.37,195.3,1.5023]
[1735667201361,40.96871013,195.31,195.24,1.5023]
[1735667201567,5.0,195.4,195.24,1.5023]
[1735667201568,40.96871013,195.29,195.24,1.5023]
[1735667202151,40.96871013,195.28,195.24,1.5023]
[1735667202358,25.25236029,195.28,195.24,1.5023]
[1735667203165,25.25236029,195.29,195.24,1.5023]
[1735667203759,12.7968,195.36,195.22,6.5436]
[1735667203960,25.25236029,195.25,195.18,26.75466029]
[1735667204175,25.25236029,195.25,195.18,1.5023]
[1735667204480,41.05104179,195.25,195.18,1.5023]
[1735667204859,41.05104179,195.25,195.18,42.55334179]
[1735667205058,41.05104179,195.3,195.16,47.59464179]
[1735667205059,41.05104179,195.23,195.16,47.59464179]
[1735667205278,41.05104179,195.2,195.16,6.5436]
[1735667205586,23.776884,195.29,195.16,6.5436]
[1735667205587,41.05104179,195.19,195.16,6.5436]
[1735667205783,41.05104179,195.18,195.11,42.55334179]
[1735667206085,41.05104179,195.18,195.11,1.5023]
[1735667206449,41.05104179,195.18,195.11,42.55334179]
[1735667206853,41.05104179,195.18,195.11,1.5023]
[1735667207371,41.05104179,195.21,195.13,41.05104179]
[1735667207680,41.05104179,195.21,195.14,41.05104179]
[1735667208150,41.05104179,195.22,195.14,41.05104179]
[1735667208355,41.05104179,195.2,195.13,41.05104179]
[1735667208565,41.05104179,195.21,195.14,41.05104179]
[1735667208865,41.05104179,195.22,195.14,41.05104179]
[1735667209570,41.05104179,195.21,195.14,41.05104179]
[1735667210393,41.05104179,195.22,195.15,41.05104179]
[1735667211973,41.05104179,195.21,195.14,41.05104179]
[1735667212297,41.05104179,195.17,195.11,1.5023]
[1735667212595,41.05104179,195.18,195.11,42.55334179]
[1735667213083,41.05104179,195.13,195.1,6.5436]